[Event "EYCC Open-U16 2019"]
[Site "Bratislava"]
[Date "2019.08.02"]
[Round "1.1"]
[White "Kacharava, Nikolozi"]
[Black "Gavrilin, Roman"]
[Result "1-0"]
[ECO "B53"]
[WhiteElo "2431"]
[BlackElo "2131"]
[Annotator "NA"]
[PlyCount "101"]
[EventDate "2019.08.02"]
[EventType "swiss"]
[EventCountry "SVK"]
[SourceTitle "playchess.com"]
[Source "ChessBase"]
[SourceQuality "1"]
[TimeControl "40/5400+30:1800+30"]

1. e4 {[%emt 0:00:00]} c5 {[%emt 0:00:00]} 2. Nf3 {[%emt 0:00:24]} d6 {[%emt 0:00:00]} 3. d4 {[%emt 0:00:47]} cxd4 {[%emt 0:00:10]} 4. Qxd4 {[%emt 0:00:46]} a6 {[%emt 0:01:17]} 5. c4 {[%emt 0:00:52]} Nc6 {[%emt 0:00:38]} 6. Qe3 {[%emt 0:00:28]} g6 {[%emt 0:00:36]} 7. h3 {[%emt 0:00:44]} Bg7 {[%emt 0:01:46]} 8. Be2 {[%emt 0:00:43]} Nf6 {[%emt 0:01:01]} 9. O-O {[%emt 0:00:32]} O-O {[%emt 0:01:45]} 10. Nc3 {[%emt 0:00:28]} Nd7 {[%emt 0:03:07]} 11. Rb1 {[%emt 0:00:37]} b6 {[%emt 0:05:12]} 12. b3 {[%emt 0:03:30]} Bb7 {[%emt 0:01:47]} 13. Bb2 {[%emt 0:01:05]} e6 {[%emt 0:13:27]} 14. Ba3 {[%emt 0:09:29]} Nde5 {[%emt 0:12:23]} 15. Rfd1 {[%emt 0:06:35]} Nxf3+ {[%emt 0:00:53]} 16. Bxf3 {[%emt 0:02:43]} Be5 {[%emt 0:11:04]} 17. Bxd6 {[%emt 0:04:54]} Bxd6 {[%emt 0:03:47]} 18. e5 {[%emt 0:00:59]} Bc5 {[%emt 0:10:18]} 19. Rxd8 {[%emt 0:00:45]} Bxe3 {[%emt 0:00:30]} 20. Rxf8+ {[%emt 0:04:45]} Kxf8 {[%emt 0:04:16]} 21. fxe3 {[%emt 0:00:46]} Rb8 {[%emt 0:00:09]} 22. Bxc6 {[%emt 0:01:31]} Bxc6 {[%emt 0:00:11]} 23. Rd1 {[%emt 0:00:58]} Rc8 {[%emt 0:07:02]} 24. Ne2 {[%emt 0:17:53]} Be8 {[%emt 0:03:02]} 25. Rd6 {[%emt 0:08:01]} b5 {[%emt 0:01:57]} 26. cxb5 {[%emt 0:02:39]} axb5 {[%emt 0:02:10]} 27. Nd4 {[%emt 0:03:25]} Rc5 {[%emt 0:03:44]} 28. Nf3 {[%emt 0:01:14]} Bc6 {[%emt 0:06:01]} 29. b4 {[%emt 0:01:52]} Rc2 {[%emt 0:01:52]} 30. Rd2 {[%emt 0:00:54]} Rc1+ {[%emt 0:01:21]} 31. Kf2 {[%emt 0:02:51]} Bd5 {[%emt 0:00:20]} 32. Nd4 {[%emt 0:02:58]} Bc4 {[%emt 0:00:09]} 33. Rc2 {[%emt 0:02:40]} Rb1 {[%emt 0:02:23]} 34. a3 {[%emt 0:07:56]} Ra1 {[%emt 0:00:15]} 35. Rc3 {[%emt 0:00:08]} Ra2+ {[%emt 0:00:40]} 36. Kf3 {[%emt 0:00:46]} Bf1 {[%emt 0:01:50]} 37. Nc2 {[%emt 0:01:50]} Bc4 {[%emt 0:00:21]} 38. e4 {[%emt 0:00:52]} Rb2 {[%emt 0:00:38]} 39. Ne3 {[%emt 0:02:24]} Bb3 {[%emt 0:00:50]} 40. Kf4 {[%emt 0:00:00]} h6 {[%emt 0:00:00]} 41. h4 {[%emt 0:15:40]} Ba4 {[%emt 0:03:51]} 42. Ng4 {[%emt 0:03:23]} Rxg2 {[%emt 0:03:47]} 43. Rc8+ {[%emt 0:04:50]} Kg7 {[%emt 0:00:06]} 44. Nf6 {[%emt 0:00:21]} h5 {[%emt 0:01:26]} 45. Kf3 {[%emt 0:03:54]} Rg1 {[%emt 0:01:11]} 46. Rg8+ {[%emt 0:02:25]} Kh6 {[%emt 0:00:06]} 47. Nxh5 {[%emt 0:00:58]} Kh7 {[%emt 0:10:34]} 48. Nf6+ {[%emt 0:00:26]} Kh6 {[%emt 0:00:04]} 49. Rh8+ {[%emt 0:01:05]} Kg7 {[%emt 0:00:08]} 50. Rh7+ {[%emt 0:01:00]} Kf8 {[%emt 0:00:10]} 51. h5 {[%emt 0:00:28]} 1-0

[Event "EYCC Open-U16 2019"]
[Site "Bratislava"]
[Date "2019.08.02"]
[Round "1.2"]
[White "Kasioumis, Vasilios"]
[Black "Teclaf, Pawel"]
[Result "0-1"]
[ECO "B23"]
[WhiteElo "2015"]
[BlackElo "2454"]
[Annotator "ChessBase"]
[PlyCount "60"]
[EventDate "2019.08.02"]
[EventType "swiss"]
[EventCountry "SVK"]
[SourceTitle "playchess.com"]
[Source "ChessBase"]
[SourceQuality "1"]
[TimeControl "40/5400+30:1800+30"]

1. e4 {[%emt 0:00:00]} c5 {[%emt 0:00:00]} 2. Nc3 {[%emt 0:00:00]} a6 {[%emt 0:00:00]} 3. Nge2 {[%emt 0:00:00]} d6 {[%emt 0:02:30]} 4. g3 {[%emt 0:00:00]} Nf6 {[%emt 0:02:12]} 5. Bg2 {[%emt 0:00:02]} e6 {[%emt 0:03:40]} 6. d4 {[%emt 0:03:25]} cxd4 {[%emt 0:00:20]} 7. Nxd4 {[%emt 0:00:07]} Be7 {[%emt 0:02:22]} 8. O-O {[%emt 0:01:41]} O-O {[%emt 0:03:02]} 9. Qe2 {[%emt 0:07:47]} Qc7 {[%emt 0:03:42]} 10. Kh1 {[%emt 0:18:27]} Nc6 {[%emt 0:11:49]} 11. Nxc6 {[%emt 0:02:19]} bxc6 {[%emt 0:00:50]} 12. b3 {[%emt 0:03:34]} d5 {[%emt 0:17:53]} 13. e5 {[%emt 0:11:28]} Nd7 {[%emt 0:04:45]} 14. Bb2 {[%emt 0:02:47]} a5 {[%emt 0:05:25]} 15. Rfe1 {[%emt 0:08:10]} Nb6 {[%emt 0:04:54]} 16. a4 {[%emt 0:04:20]} Ba6 {[%emt 0:03:22]} 17. Qg4 {[%emt 0:04:06]} Bb4 {[%emt 0:02:55]} 18. Red1 {[%emt 0:02:29]} Qxe5 {[%emt 0:08:56]} 19. Nxd5 {[%emt 0:02:12]} Qxb2 {[%emt 0:00:08]} 20. Nxb6 {[%emt 0:00:05]} Rad8 21. Qe4 {[%emt 0:04:47]} Rd2 {[%emt 0:03:05]} 22. Rdc1 {[%emt 0:05:43]} Rxf2 {[%emt 0:05:25]} 23. Qxc6 {[%emt 0:02:46]} Qc3 {[%emt 0:01:12]} 24. Nd7 {[%emt 0:07:34]} Qxc6 {[%emt 0:00:12]} 25. Bxc6 {[%emt 0:00:04]} Rc8 {[%emt 0:01:31]} 26. c3 {[%emt 0:00:26]} Be7 {[%emt 0:04:53]} 27. Bg2 {[%emt 0:02:40]} Bg5 {[%emt 0:03:44]} 28. Rd1 {[%emt 0:03:08]} Rxc3 {[%emt 0:00:17]} 29. h4 {[%emt 0:01:46]} Rcc2 {[%emt 0:00:54]} 30. Rg1 {[%emt 0:01:37]} Bb7 {[%emt 0:00:30]} 0-1

[Event "EYCC Open-U16 2019"]
[Site "Bratislava"]
[Date "2019.08.02"]
[Round "1.3"]
[White "Horvath, Dominik"]
[Black "Silich, Yahor"]
[Result "1-0"]
[ECO "A45"]
[WhiteElo "2424"]
[BlackElo "2100"]
[Annotator "NA"]
[PlyCount "53"]
[EventDate "2019.08.02"]
[EventType "swiss"]
[EventCountry "SVK"]
[SourceTitle "playchess.com"]
[Source "ChessBase"]
[SourceQuality "1"]
[TimeControl "40/5400+30:1800+30"]

1. d4 {[%emt 0:00:00]} Nf6 {[%emt 0:00:00]} 2. Nc3 {[%emt 0:00:00]} d5 {[%emt 0:01:01]} 3. Bf4 {[%emt 0:00:00]} g6 {[%emt 0:00:36]} 4. e3 {[%emt 0:00:28]} Bg7 {[%emt 0:00:37]} 5. h4 {[%emt 0:00:05]} c6 {[%emt 0:01:08]} 6. Be2 {[%emt 0:02:45]} h5 {[%emt 0:04:13]} 7. Nf3 {[%emt 0:00:28]} Nbd7 {[%emt 0:06:18]} 8. Ne5 {[%emt 0:05:26]} Nxe5 {[%emt 0:12:02]} 9. Bxe5 {[%emt 0:00:15]} Be6 {[%emt 0:00:27]} 10. Qd2 {[%emt 0:05:54]} O-O {[%emt 0:10:53]} 11. Bd3 {[%emt 0:03:01]} Rc8 {[%emt 0:07:18]} 12. Ne2 {[%emt 0:06:58]} Qd7 {[%emt 0:03:19]} 13. Nf4 {[%emt 0:09:39]} Bf5 {[%emt 0:01:28]} 14. f3 {[%emt 0:01:12]} c5 {[%emt 0:05:35]} 15. c3 {[%emt 0:10:34]} cxd4 {[%emt 0:03:28]} 16. Bxd4 {[%emt 0:02:43]} Rfd8 {[%emt 0:10:46]} 17. O-O-O {[%emt 0:03:59]} Bxd3 {[%emt 0:02:36]} 18. Qxd3 {[%emt 0:00:10]} Qa4 {[%emt 0:04:36]} 19. Kb1 {[%emt 0:01:38]} Ne4 {[%emt 0:10:49]} 20. fxe4 {[%emt 0:07:12]} dxe4 {[%emt 0:00:33]} 21. Qxe4 {[%emt 0:04:50]} e5 {[%emt 0:00:29]} 22. Nd5 {[%emt 0:00:44]} Kh7 {[%emt 0:03:16]} 23. Qf3 {[%emt 0:13:39]} exd4 {[%emt 0:00:05]} 24. exd4 {[%emt 0:00:11]} Qc6 {[%emt 0:02:00]} 25. Nf4 {[%emt 0:01:54]} Qb5 {[%emt 0:01:08]} 26. Qd3 {[%emt 0:00:58]} Qd7 {[%emt 0:01:11]} 27. Nxh5 {[%emt 0:00:31]} 1-0

[Event "EYCC Open-U16 2019"]
[Site "Bratislava"]
[Date "2019.08.02"]
[Round "1.4"]
[White "Grutter, Tim"]
[Black "Subelj, Jan"]
[Result "1/2-1/2"]
[ECO "C54"]
[WhiteElo "2091"]
[BlackElo "2425"]
[Annotator "NA"]
[PlyCount "107"]
[EventDate "2019.08.02"]
[EventType "swiss"]
[EventCountry "SVK"]
[SourceTitle "playchess.com"]
[Source "ChessBase"]
[SourceQuality "1"]
[TimeControl "40/5400+30:1800+30"]

1. e4 {[%emt 0:00:00]} e5 {[%emt 0:00:01]} 2. Nf3 {[%emt 0:00:00]} Nc6 {[%emt 0:00:25]} 3. Bc4 {[%emt 0:00:00]} Bc5 {[%emt 0:00:33]} 4. c3 {[%emt 0:00:00]} Nf6 {[%emt 0:00:24]} 5. d3 {[%emt 0:00:00]} d6 {[%emt 0:00:57]} 6. Bb3 {[%emt 0:00:58]} a6 {[%emt 0:09:13]} 7. Nbd2 {[%emt 0:00:15]} O-O {[%emt 0:00:17]} 8. O-O {[%emt 0:00:48]} Ba7 {[%emt 0:01:27]} 9. h3 {[%emt 0:00:46]} Ne7 {[%emt 0:06:32]} 10. Re1 {[%emt 0:00:42]} Ng6 {[%emt 0:00:19]} 11. Nf1 {[%emt 0:02:19]} b5 {[%emt 0:02:38]} 12. Ng3 {[%emt 0:04:49]} Bb7 {[%emt 0:01:05]} 13. d4 {[%emt 0:15:48]} exd4 {[%emt 0:07:10]} 14. Nxd4 {[%emt 0:08:58]} Re8 {[%emt 0:25:34]} 15. Bc2 {[%emt 0:08:08]} d5 {[%emt 0:00:52]} 16. Bg5 {[%emt 0:17:09]} h6 {[%emt 0:01:25]} 17. Bxf6 {[%emt 0:02:56]} Qxf6 {[%emt 0:00:08]} 18. Qg4 {[%emt 0:16:12]} Bxd4 {[%emt 0:04:54]} 19. cxd4 {[%emt 0:00:44]} Qxd4 {[%emt 0:00:13]} 20. Bb3 {[%emt 0:01:23]} Ne5 {[%emt 0:11:13]} 21. Nf5 {[%emt 0:04:18]} Nxg4 {[%emt 0:00:08]} 22. Nxd4 {[%emt 0:00:03]} Nf6 {[%emt 0:00:07]} 23. Rac1 {[%emt 0:01:18]} dxe4 {[%emt 0:02:02]} 24. Rxc7 {[%emt 0:00:31]} Bd5 {[%emt 0:00:06]} 25. Bxd5 {[%emt 0:01:21]} Nxd5 {[%emt 0:00:06]} 26. Rd7 {[%emt 0:01:13]} Nb4 {[%emt 0:06:21]} 27. Nf5 {[%emt 0:02:05]} Nxa2 {[%emt 0:02:11]} 28. Rd4 {[%emt 0:00:08]} a5 {[%emt 0:01:43]} 29. Nd6 {[%emt 0:01:46]} Red8 {[%emt 0:02:08]} 30. Nxb5 {[%emt 0:00:23]} Rxd4 {[%emt 0:00:13]} 31. Nxd4 {[%emt 0:00:01]} Rb8 {[%emt 0:01:03]} 32. Rxe4 {[%emt 0:02:05]} Rxb2 {[%emt 0:00:48]} 33. Nc6 {[%emt 0:00:06]} Nb4 {[%emt 0:04:36]} 34. Nxa5 {[%emt 0:01:00]} Nd3 {[%emt 0:00:05]} 35. f3 {[%emt 0:01:03]} f5 {[%emt 0:00:05]} 36. Rd4 {[%emt 0:02:14]} Ne1 {[%emt 0:01:51]} 37. Nc4 {[%emt 0:01:28]} Ra2 {[%emt 0:03:27]} 38. Rd2 {[%emt 0:00:46]} Rxd2 {[%emt 0:00:50]} 39. Nxd2 {[%emt 0:00:07]} Nd3 {[%emt 0:00:04]} 40. g3 {[%emt 0:00:00]} Kf7 {[%emt 0:00:00]} 41. f4 {[%emt 0:03:12]} Ke6 {[%emt 0:00:50]} 42. Kg2 {[%emt 0:01:54]} Kd5 {[%emt 0:00:38]} 43. Kf3 {[%emt 0:00:51]} g6 {[%emt 0:00:25]} 44. Nf1 {[%emt 0:01:06]} Ne1+ {[%emt 0:00:12]} 45. Ke3 {[%emt 0:00:58]} Nc2+ {[%emt 0:00:28]} 46. Kd3 {[%emt 0:00:38]} Nd4 {[%emt 0:00:13]} 47. Ne3+ {[%emt 0:00:22]} Kc5 {[%emt 0:00:05]} 48. g4 {[%emt 0:00:18]} h5 {[%emt 0:01:32]} 49. gxh5 {[%emt 0:00:32]} gxh5 {[%emt 0:00:05]} 50. h4 {[%emt 0:00:07]} Ne6 {[%emt 0:00:07]} 51. Nxf5 {[%emt 0:00:11]} Nxf4+ {[%emt 0:00:04]} 52. Ke4 {[%emt 0:00:06]} Ng6 {[%emt 0:00:05]} 53. Ng7 {[%emt 0:00:08]} Nxh4 {[%emt 0:00:10]} 54. Nxh5 {[%emt 0:00:06]} 1/2-1/2

[Event "EYCC Open-U16 2019"]
[Site "Bratislava"]
[Date "2019.08.02"]
[Round "1.5"]
[White "Olsen, Filip Boe"]
[Black "Vorisek, Jakub"]
[Result "0-1"]
[ECO "D35"]
[WhiteElo "2383"]
[BlackElo "2071"]
[Annotator "NA"]
[PlyCount "73"]
[EventDate "2019.08.02"]
[EventType "swiss"]
[EventCountry "SVK"]
[SourceTitle "playchess.com"]
[Source "ChessBase"]
[SourceQuality "1"]
[TimeControl "40/5400+30:1800+30"]

1. d4 {[%emt 0:00:00]} d5 {[%emt 0:00:00]} 2. c4 {[%emt 0:00:00]} e6 {[%emt 0:00:00]} 3. Nc3 {[%emt 0:00:02]} Nf6 {[%emt 0:00:16]} 4. cxd5 {[%emt 0:00:17]} exd5 {[%emt 0:00:14]} 5. Bg5 {[%emt 0:00:48]} c6 {[%emt 0:00:29]} 6. e3 {[%emt 0:00:21]} h6 {[%emt 0:01:30]} 7. Bh4 {[%emt 0:00:45]} Be6 {[%emt 0:00:38]} 8. Bd3 {[%emt 0:00:59]} Nbd7 {[%emt 0:01:17]} 9. Nge2 {[%emt 0:02:22]} g5 {[%emt 0:04:23]} 10. Bg3 {[%emt 0:00:26]} Nh5 {[%emt 0:00:21]} 11. Qc2 {[%emt 0:06:39]} Nxg3 {[%emt 0:00:36]} 12. Nxg3 {[%emt 0:00:26]} h5 {[%emt 0:00:36]} 13. O-O-O {[%emt 0:04:27]} h4 {[%emt 0:04:08]} 14. Nf5 {[%emt 0:00:42]} Qa5 {[%emt 0:01:09]} 15. a3 {[%emt 0:05:37]} O-O-O {[%emt 0:04:37]} 16. g3 {[%emt 0:08:46]} Kb8 {[%emt 0:11:02]} 17. gxh4 {[%emt 0:05:43]} gxh4 {[%emt 0:00:25]} 18. Rhg1 {[%emt 0:02:23]} Qc7 {[%emt 0:11:12]} 19. h3 {[%emt 0:01:37]} Nf6 {[%emt 0:11:37]} 20. f3 {[%emt 0:07:08]} Bxf5 {[%emt 0:02:12]} 21. Bxf5 {[%emt 0:00:16]} Bh6 {[%emt 0:00:59]} 22. Qf2 {[%emt 0:02:35]} Rde8 {[%emt 0:03:39]} 23. Rde1 {[%emt 0:03:34]} Rxe3 {[%emt 0:14:29]} 24. Rxe3 {[%emt 0:01:21]} Qf4 {[%emt 0:00:48]} 25. Kc2 {[%emt 0:01:23]} Qxe3 {[%emt 0:00:27]} 26. Qxe3 {[%emt 0:01:37]} Bxe3 {[%emt 0:00:16]} 27. Rg7 {[%emt 0:00:08]} Rf8 {[%emt 0:01:14]} 28. Kd3 {[%emt 0:01:36]} Bh6 {[%emt 0:05:20]} 29. Rg2 {[%emt 0:04:19]} Re8 {[%emt 0:01:11]} 30. Re2 {[%emt 0:00:37]} Kc7 {[%emt 0:03:24]} 31. b3 {[%emt 0:00:50]} Rxe2 {[%emt 0:05:32]} 32. Nxe2 {[%emt 0:00:02]} Nh5 {[%emt 0:02:49]} 33. Bg4 {[%emt 0:04:45]} Ng3 {[%emt 0:01:42]} 34. Nxg3 {[%emt 0:00:34]} hxg3 {[%emt 0:00:08]} 35. Ke2 {[%emt 0:00:15]} Bg7 {[%emt 0:01:49]} 36. Ke3 {[%emt 0:00:56]} Bxd4+ {[%emt 0:00:41]} 37. Kxd4 0-1

[Event "EYCC Open-U16 2019"]
[Site "Bratislava"]
[Date "2019.08.02"]
[Round "1.6"]
[White "Viczencz, Peter"]
[Black "Stoyanov, Tsvetan"]
[Result "0-1"]
[ECO "B01"]
[WhiteElo "2014"]
[BlackElo "2387"]
[Annotator "NA"]
[PlyCount "66"]
[EventDate "2019.08.02"]
[EventType "swiss"]
[EventCountry "SVK"]
[SourceTitle "playchess.com"]
[Source "ChessBase"]
[SourceQuality "1"]
[TimeControl "40/5400+30:1800+30"]

1. e4 {[%emt 0:00:00]} d5 {[%emt 0:00:00]} 2. exd5 {[%emt 0:00:00]} Qxd5 {[%emt 0:00:06]} 3. Nc3 {[%emt 0:00:09]} Qd6 {[%emt 0:00:20]} 4. d4 {[%emt 0:00:23]} Nf6 {[%emt 0:00:21]} 5. Bc4 {[%emt 0:02:28]} g6 {[%emt 0:02:11]} 6. Nf3 {[%emt 0:01:37]} Bg4 {[%emt 0:03:09]} 7. Be3 {[%emt 0:08:56]} c6 {[%emt 0:02:49]} 8. h3 {[%emt 0:01:49]} Bxf3 {[%emt 0:01:40]} 9. Qxf3 {[%emt 0:00:27]} Bg7 {[%emt 0:00:16]} 10. O-O {[%emt 0:01:21]} Nbd7 {[%emt 0:02:23]} 11. Rad1 {[%emt 0:00:35]} e6 {[%emt 0:02:01]} 12. a3 {[%emt 0:00:57]} O-O {[%emt 0:01:33]} 13. Rfe1 {[%emt 0:00:39]} Nd5 {[%emt 0:19:15]} 14. Ne4 {[%emt 0:05:26]} Qc7 {[%emt 0:01:47]} 15. Bg5 {[%emt 0:01:36]} Qb6 {[%emt 0:12:55]} 16. b3 {[%emt 0:02:21]} Bxd4 {[%emt 0:02:50]} 17. Bxd5 {[%emt 0:14:17]} cxd5 {[%emt 0:00:55]} 18. Rxd4 {[%emt 0:00:32]} Qxd4 {[%emt 0:02:47]} 19. Nf6+ {[%emt 0:00:11]} Nxf6 {[%emt 0:00:07]} 20. Bxf6 {[%emt 0:00:06]} Qd2 {[%emt 0:05:40]} 21. Re2 {[%emt 0:07:07]} Qc1+ {[%emt 0:04:34]} 22. Kh2 {[%emt 0:00:06]} Qh6 {[%emt 0:10:43]} 23. h4 {[%emt 0:03:50]} Rfc8 {[%emt 0:02:55]} 24. g3 {[%emt 0:00:46]} Rc6 {[%emt 0:00:57]} 25. Bg5 {[%emt 0:05:38]} Qf8 {[%emt 0:00:24]} 26. Bf6 {[%emt 0:02:13]} Rac8 {[%emt 0:07:20]} 27. c3 {[%emt 0:01:03]} Qxa3 {[%emt 0:01:45]} 28. b4 {[%emt 0:07:32]} Rxc3 {[%emt 0:02:09]} 29. Rc2 {[%emt 0:04:56]} Rxc2 {[%emt 0:00:13]} 30. Qxa3 {[%emt 0:00:12]} Rxf2+ {[%emt 0:00:01]} 31. Kh3 {[%emt 0:00:36]} Rxf6 {[%emt 0:00:08]} 32. Qxa7 {[%emt 0:02:25]} h5 {[%emt 0:00:49]} 33. Qd4 {[%emt 0:04:26]} Rf3 {[%emt 0:01:32]} 0-1

[Event "EYCC Open-U16 2019"]
[Site "Bratislava"]
[Date "2019.08.02"]
[Round "1.7"]
[White "Svane, Frederik"]
[Black "Placer, Sebastian"]
[Result "1-0"]
[ECO "B11"]
[WhiteElo "2334"]
[BlackElo "2040"]
[Annotator "NA"]
[PlyCount "165"]
[EventDate "2019.08.02"]
[EventType "swiss"]
[EventCountry "SVK"]
[SourceTitle "playchess.com"]
[Source "ChessBase"]
[SourceQuality "1"]
[TimeControl "40/5400+30:1800+30"]

1. e4 {[%emt 0:00:00]} c6 {[%emt 0:00:00]} 2. Nc3 {[%emt 0:00:01]} d5 {[%emt 0:00:00]} 3. Nf3 {[%emt 0:00:07]} Bg4 {[%emt 0:00:16]} 4. h3 {[%emt 0:00:10]} Bxf3 {[%emt 0:00:15]} 5. Qxf3 {[%emt 0:00:07]} e6 {[%emt 0:00:18]} 6. d4 {[%emt 0:08:09]} dxe4 {[%emt 0:00:45]} 7. Qxe4 {[%emt 0:00:06]} Nf6 {[%emt 0:00:16]} 8. Qd3 {[%emt 0:00:06]} Nbd7 {[%emt 0:00:22]} 9. g3 {[%emt 0:00:27]} Be7 {[%emt 0:00:43]} 10. Bg2 {[%emt 0:00:04]} O-O {[%emt 0:00:38]} 11. O-O {[%emt 0:00:07]} Qc7 {[%emt 0:03:40]} 12. Bf4 {[%emt 0:27:44]} Bd6 {[%emt 0:00:21]} 13. Bxd6 {[%emt 0:00:32]} Qxd6 {[%emt 0:00:07]} 14. Rad1 {[%emt 0:08:06]} Rad8 {[%emt 0:00:26]} 15. a3 {[%emt 0:08:19]} Qc7 {[%emt 0:04:36]} 16. Rfe1 {[%emt 0:02:03]} Rfe8 {[%emt 0:04:51]} 17. Ne4 {[%emt 0:29:04]} Nxe4 {[%emt 0:01:47]} 18. Qxe4 {[%emt 0:00:13]} Nf6 {[%emt 0:00:31]} 19. Qe5 {[%emt 0:06:04]} Rd7 {[%emt 0:03:39]} 20. Qxc7 {[%emt 0:03:39]} Rxc7 {[%emt 0:00:06]} 21. c3 {[%emt 0:00:20]} Rd7 {[%emt 0:03:07]} 22. Bf3 {[%emt 0:00:09]} Red8 {[%emt 0:01:56]} 23. Kg2 {[%emt 0:00:08]} Nd5 {[%emt 0:05:34]} 24. Rc1 {[%emt 0:04:12]} Kf8 {[%emt 0:01:47]} 25. Rc2 {[%emt 0:00:05]} h6 {[%emt 0:02:20]} 26. Re5 {[%emt 0:00:07]} Ke7 {[%emt 0:02:07]} 27. Re1 {[%emt 0:02:20]} Rd6 {[%emt 0:02:05]} 28. Rce2 {[%emt 0:00:05]} R6d7 {[%emt 0:01:19]} 29. Rc1 {[%emt 0:00:54]} Rd6 {[%emt 0:01:52]} 30. Ra1 {[%emt 0:00:10]} R6d7 {[%emt 0:01:48]} 31. Rae1 {[%emt 0:00:05]} Nf6 {[%emt 0:02:23]} 32. Re5 {[%emt 0:00:09]} Nd5 {[%emt 0:03:05]} 33. Bd1 {[%emt 0:00:18]} Kf8 {[%emt 0:06:32]} 34. Bb3 {[%emt 0:00:05]} Rd6 {[%emt 0:03:01]} 35. R5e2 {[%emt 0:00:13]} R6d7 {[%emt 0:05:06]} 36. Re5 {[%emt 0:00:05]} Rd6 {[%emt 0:02:04]} 37. h4 {[%emt 0:00:11]} R6d7 {[%emt 0:02:25]} 38. h5 {[%emt 0:00:10]} Nf6 {[%emt 0:03:17]} 39. Kf3 {[%emt 0:01:02]} Rc7 {[%emt 0:02:47]} 40. g4 {[%emt 0:00:00]} c5 {[%emt 0:00:00]} 41. Rxc5 {[%emt 0:03:51]} Rxc5 {[%emt 0:09:02]} 42. dxc5 {[%emt 0:00:03]} Rc8 {[%emt 0:00:25]} 43. Rd1 {[%emt 0:04:27]} Ke7 {[%emt 0:00:24]} 44. Rd4 {[%emt 0:04:25]} Rxc5 {[%emt 0:08:10]} 45. Rc4 {[%emt 0:14:23]} Rxc4 {[%emt 0:05:20]} 46. Bxc4 {[%emt 0:00:07]} Kd6 {[%emt 0:00:27]} 47. Kf4 {[%emt 0:00:51]} Nd7 {[%emt 0:09:20]} 48. Ke4 {[%emt 0:04:28]} Nc5+ {[%emt 0:01:19]} 49. Kd4 {[%emt 0:00:27]} Na4 {[%emt 0:04:23]} 50. b3 {[%emt 0:00:06]} e5+ {[%emt 0:02:12]} 51. Ke3 {[%emt 0:00:07]} Nxc3 {[%emt 0:00:09]} 52. Bxf7 {[%emt 0:00:02]} Nb5 {[%emt 0:10:36]} 53. a4 {[%emt 0:00:09]} Nd4 {[%emt 0:00:13]} 54. Ke4 {[%emt 0:01:32]} Nc6 {[%emt 0:07:25]} 55. Bd5 {[%emt 0:00:27]} Ne7 {[%emt 0:06:20]} 56. Bxb7 {[%emt 0:00:35]} a5 {[%emt 0:00:37]} 57. f3 {[%emt 0:01:30]} Ng8 {[%emt 0:01:57]} 58. Kf5 {[%emt 0:00:04]} Ne7+ {[%emt 0:00:04]} 59. Ke4 {[%emt 0:00:03]} Ng8 {[%emt 0:00:30]} 60. Ba6 {[%emt 0:01:20]} Ne7 {[%emt 0:00:20]} 61. Bb5 {[%emt 0:02:15]} Nd5 {[%emt 0:00:43]} 62. Bc4 {[%emt 0:00:13]} Ne7 {[%emt 0:00:06]} 63. Bf7 {[%emt 0:01:48]} Nc6 {[%emt 0:00:36]} 64. Bg8 {[%emt 0:00:59]} Ne7 {[%emt 0:00:13]} 65. Bc4 {[%emt 0:00:27]} Nc6 {[%emt 0:00:18]} 66. Ba6 {[%emt 0:01:05]} Ne7 {[%emt 0:00:27]} 67. Bb7 {[%emt 0:00:03]} Ng8 {[%emt 0:00:09]} 68. g5 {[%emt 0:00:27]} Ne7 {[%emt 0:01:40]} 69. gxh6 {[%emt 0:00:18]} gxh6 {[%emt 0:00:01]} 70. Ba6 {[%emt 0:00:38]} Ke6 {[%emt 0:00:43]} 71. Be2 {[%emt 0:01:20]} Kf6 {[%emt 0:01:35]} 72. f4 {[%emt 0:00:29]} exf4 {[%emt 0:00:12]} 73. Kxf4 {[%emt 0:00:02]} Nd5+ {[%emt 0:00:10]} 74. Ke4 {[%emt 0:00:22]} Nc3+ {[%emt 0:01:14]} 75. Kd3 {[%emt 0:00:05]} Nxe2 {[%emt 0:01:11]} 76. Kxe2 {[%emt 0:00:03]} Ke6 {[%emt 0:00:10]} 77. Kd3 {[%emt 0:00:05]} Kd5 {[%emt 0:00:04]} 78. Kc3 {[%emt 0:00:04]} Kc5 {[%emt 0:00:10]} 79. b4+ {[%emt 0:00:10]} axb4+ {[%emt 0:00:05]} 80. Kb3 {[%emt 0:00:03]} Kc6 {[%emt 0:00:05]} 81. Kxb4 {[%emt 0:00:04]} Kb6 {[%emt 0:00:03]} 82. Kc4 {[%emt 0:00:08]} Ka5 {[%emt 0:00:04]} 83. Kd5 {[%emt 0:00:12]} 1-0